[Event "Stay Safe Play From Home 131"]
[Site "T#645805Emanuel Laske"]
[Date "2020.05.07"]
[Round "6"]
[White "matanant"]
[Black "Tumnik_ad"]
[Result "0-1"]
[WhiteElo "1788"]
[BlackElo "1884"]
[Annotator "NA RC"]
[PlyCount "102"]
[EventDate "2020.05.07"]
[EventType "swiss (blitz)"]
[TimeControl "180"]

1. e4 {[%emt 0:00:03]} e6 {[%emt 0:00:00]} 2. d4 {[%emt 0:00:02]} b6 {[%emt 0:00:00]} 3. Bd3 {[%emt 0:00:02]} Bb7 {[%emt 0:00:00]} 4. f4 {[%emt 0:00:02]} Nf6 {[%emt 0:00:04]} 5. Qe2 {[%emt 0:00:02]} d5 {[%emt 0:00:01]} 6. e5 {[%emt 0:00:02]} Ne4 {[%emt 0:00:01]} 7. Bxe4 {[%emt 0:00:03]} dxe4 {[%emt 0:00:00]} 8. Be3 {[%emt 0:00:02]} Nc6 {[%emt 0:00:02]} 9. c3 {[%emt 0:00:01]} Ne7 {[%emt 0:00:02]} 10. Nd2 {[%emt 0:00:05]} a5 {[%emt 0:00:05]} 11. Nh3 {[%emt 0:00:02]} Ba6 {[%emt 0:00:08]} 12. c4 {[%emt 0:00:04]} Nf5 {[%emt 0:00:02]} 13. Qf2 {[%emt 0:00:09]} Bb4 {[%emt 0:00:04]} 14. b3 {[%emt 0:00:03]} Bc3 {[%emt 0:00:06]} 15. Rc1 {[%emt 0:00:04]} Bxd4 {[%emt 0:00:05]} 16. Bxd4 {[%emt 0:00:03]} Qxd4 {[%emt 0:00:00]} 17. Qxd4 {[%emt 0:00:02]} Nxd4 {[%emt 0:00:00]} 18. Nxe4 {[%emt 0:00:02]} O-O-O {[%emt 0:00:04]} 19. Kf2 {[%emt 0:00:06]} h6 {[%emt 0:00:07]} 20. Rhd1 {[%emt 0:00:04]} Bb7 {[%emt 0:00:01]} 21. Nc3 {[%emt 0:00:14]} Nf5 {[%emt 0:00:04]} 22. a3 {[%emt 0:00:13]} Nh4 {[%emt 0:00:02]} 23. g3 {[%emt 0:00:07]} Nf3 {[%emt 0:00:01]} 24. b4 {[%emt 0:00:05]} axb4 {[%emt 0:00:03]} 25. axb4 {[%emt 0:00:02]} Nxh2 {[%emt 0:00:00]} 26. c5 {[%emt 0:00:10]} Ng4+ {[%emt 0:00:02]} 27. Kg1 {[%emt 0:00:03]} Ne3 {[%emt 0:00:07]} 28. Rxd8+ {[%emt 0:00:03]} Rxd8 {[%emt 0:00:00]} 29. Nf2 {[%emt 0:00:06]} bxc5 {[%emt 0:00:03]} 30. bxc5 {[%emt 0:00:02]} Rd2 {[%emt 0:00:01]} 31. Nce4 {[%emt 0:00:08]} Bxe4 {[%emt 0:00:12]} 32. Nxe4 {[%emt 0:00:01]} Rc2 {[%emt 0:00:00]} 33. Re1 {[%emt 0:00:06]} Nf5 {[%emt 0:00:06]} 34. g4 {[%emt 0:00:01]} Nd4 {[%emt 0:00:05]} 35. Ng3 {[%emt 0:00:04]} Nf3+ {[%emt 0:00:01]} 36. Kf1 {[%emt 0:00:03]} Nh2+ {[%emt 0:00:03]} 37. Kg1 {[%emt 0:00:02]} Nf3+ {[%emt 0:00:00]} 38. Kf1 {[%emt 0:00:01]} Nxe1 {[%emt 0:00:00]} 39. Kxe1 {[%emt 0:00:01]} Rxc5 {[%emt 0:00:01]} 40. Ke2 {[%emt 0:00:02]} Rc3 {[%emt 0:00:01]} 41. Ne4 {[%emt 0:00:03]} Rc4 {[%emt 0:00:03]} 42. Kd3 {[%emt 0:00:02]} Rxe4 {[%emt 0:00:01]} 43. Kxe4 {[%emt 0:00:01]} c5 {[%emt 0:00:00]} 44. f5 {[%emt 0:00:01]} Kc7 {[%emt 0:00:01]} 45. Kd3 {[%emt 0:00:07]} Kc6 {[%emt 0:00:04]} 46. Kc4 {[%emt 0:00:01]} g5 {[%emt 0:00:03]} 47. f6 {[%emt 0:00:07]} Kb6 {[%emt 0:00:03]} 48. Kc3 {[%emt 0:00:01]} Kb5 {[%emt 0:00:01]} 49. Kb3 {[%emt 0:00:00]} c4+ {[%emt 0:00:00]} 50. Kc3 {[%emt 0:00:01]} Kc5 {[%emt 0:00:00]} 51. Kd2 {[%emt 0:00:01]} Kd5 {[%emt 0:00:00] Time (Lag: Av=0.67s, max=1.1s)} 0-1